fUSD/lending_fUSD_20251023
["ID","MTS","AMOUNT","RATE_DAILY","PERIOD"]
[392148213,1761210640740,-160.17732397,0.00045473,10]
[392148215,1761210640750,-160.17732801,0.00045473,10]
[392148218,1761210640761,-160.177328,0.00045473,10]
[392148220,1761210640771,-200.0,0.00045473,10]
[392148222,1761210640780,-321.53200453,0.00045473,10]
[392148224,1761210640793,-160.17732397,0.00045473,10]
[392148226,1761210640803,-160.17732799,0.00045473,10]
[392148228,1761210640812,-160.177328,0.00045473,7]
[392148230,1761210640822,-160.16977216,0.00045473,10]
[392148232,1761210640831,-500.0,0.00045473,10]
[392148234,1761210640840,-160.177328,0.00045473,10]
[392148236,1761210640850,-463.47527647,0.00045473,5]
[392148238,1761210640860,-159.983392,0.00045473,10]
[392148240,1761210640869,-160.177328,0.00045473,10]
[392148243,1761210640879,-160.177328,0.00045473,10]
[392148245,1761210640888,-160.17732799,0.00045473,10]
[392148247,1761210640897,-160.17732397,0.00045473,5]
[392148249,1761210640906,-500.0,0.00045473,10]
[392148251,1761210640915,-1232000.0,0.000455,120]
[392148252,1761210640925,-400.0,0.000455,120]
[392148254,1761210640935,-400.0,0.000455,120]
[392148256,1761210640944,-400.0,0.000455,120]
[392148258,1761210640953,-400.0,0.000455,120]
[392148260,1761210640962,-151.0,0.000455,120]
[392148262,1761210640971,-151.0,0.000455,120]
[392148264,1761210640981,-297.696216,0.000455,120]
[392148267,1761210640991,-346.153962,0.000455,30]
[392148269,1761210641001,-346.153962,0.000455,30]
[392148271,1761210641011,-346.153962,0.000455,30]
[392148273,1761210641021,-346.153962,0.000455,30]
[392148275,1761210641030,-530.32,0.00045547,120]
[392148277,1761210641039,-500.0,0.00045547,120]
[392148279,1761210641049,-17394.0,0.00045625,2]
[392148281,1761210641059,-416.0,0.00045675,30]
[392148283,1761210641069,-500.0,0.00045721,30]
[392148285,1761210641079,-922.58,0.00045721,120]
[392148287,1761210641088,-500.0,0.00045721,120]
[392148289,1761210641097,-868.53,0.00045721,120]
[392148291,1761210641106,-7219.27,0.00045721,120]
[392148293,1761210641116,-820.09206155,0.00045739,2]
[392148311,1761210641264,-528.75313956,0.00045757,28]
[392148313,1761210641274,-300.0,0.000458,16]
[392148315,1761210641284,-530.32,0.00045821,120]
[392148317,1761210641294,-500.0,0.00045821,120]
[392148319,1761210641303,-820.09206156,0.00045847,2]
[392148321,1761210641312,-209.44603884,0.000459,21]
[392148323,1761210641324,-300.0,0.000459,16]
[392148325,1761210641333,-1036.83220704,0.000459,120]
[392148327,1761210641343,-162.52152531,0.000459,15]
[392148329,1761210641352,-10021.04961313,0.0004594,2]
[392148331,1761210641361,-15238.69047482,0.00045986,120]
[392148333,1761210641371,-257.73880547,0.0004599,7]
[392148335,1761210641380,-150.43,0.0004599,2]
[392148338,1761210641390,-500.0,0.00045995,30]
[392148339,1761210641399,-922.58,0.00045995,120]
[392148341,1761210641409,-500.0,0.00045995,120]
[392148343,1761210641419,-868.53,0.00045995,120]
[392148346,1761210641428,-7219.27,0.00045995,120]
[392148348,1761210641438,-1000000.0,0.00046,120]
[392148349,1761210641447,-171863.13246999,0.00046,120]
[392148353,1761210641484,-509.66001,0.00045625,120]
[392148354,1761210641495,-750.34978988,0.00045625,120]
[392148355,1761210641506,-40.07343512,0.00045625,120]
[392148356,1761210641518,-3109.92656488,0.00046,120]
[392148357,1761210641534,-2705.9,0.00046,120]
[392148359,1761210641545,-5497.39518433,0.00046,120]
[392148361,1761210641556,-491.42396994,0.00046,120]
[392148366,1761210641594,-79420.24969496,0.00046,120]
[392148368,1761210641608,-27329.61637024,0.00046,120]
[392148371,1761210641622,-332.34,0.00046,120]
[392148373,1761210641633,-2775.00000054,0.00046,120]
[392148383,1761210641712,-109.44244921,0.00046,120]
[392148385,1761210641723,-5630.78402041,0.00046,120]
[392148387,1761210641733,-3783.3846,0.00046,120]
[392148389,1761210641743,-8556.83530138,0.00046,120]
[392148391,1761210641754,-8947.21879473,0.00046,120]
[392148393,1761210641763,-8943.78386462,0.00046,120]
[392148395,1761210641773,-9077.54866152,0.00046,120]
[392148398,1761210641784,-8943.84023489,0.00046,120]
[392148400,1761210641795,-2619.37266112,0.00046,120]
[392148402,1761210641805,-936.16296,0.00046,120]
[392148404,1761210641816,-2476.97451111,0.00046,120]
[392148555,1761210643299,-860.4182736,0.00045625,120]
[392148557,1761210643310,-439.6649614,0.00045625,120]
[392148559,1761210643319,-151.0,0.00045625,120]
[392148561,1761210643330,-1506.63134073,0.00046,120]
[392148578,1761210643636,-356.89589779,0.00046,120]
[392148579,1761210643657,-146.51153148,0.00046,120]
[392148580,1761210643671,-1359.36335883,0.00046,120]
[392148589,1761210646354,-3501.4,0.00043826,2]
[392148590,1761210646367,-1202.81999996,0.00043826,2]
[392148591,1761210646379,-681.47224851,0.00043826,2]
[392148592,1761210646488,-42.71966498,0.00043826,2]
[392148593,1761210646513,-4428.83412819,0.00043826,2]
[392148594,1761210646524,-380.52685495,0.00043826,2]
[392148595,1761210646567,-125392.18466981,0.00043826,2]
[392148596,1761210646577,-1300.083235,0.00045625,120]
[392148597,1761210646587,-151.0,0.00045625,120]
[392148598,1761210646597,-1300.083235,0.00045625,120]
[392148599,1761210646606,-86845.94843718,0.00046,120]
[392148600,1761210646620,-1136.82271602,0.00046,120]
[392148619,1761210677315,249.0,0.000381,50]
[392148620,1761210680361,184.27125,0.00027983,2]
[392148622,1761210695682,-666.0,0.00041343,20]
[392148623,1761210695705,-163.0,0.00043,90]
[392148624,1761210705818,-1557.860484,0.00044674,2]
[392148625,1761210705846,-500.0,0.00044838,120]
[392148626,1761210705867,-500.0,0.00044899,120]
[392148627,1761210705889,-508.86800937,0.00044899,120]
[392148628,1761210705912,-5000.0,0.000449,120]
[392148629,1761210705935,-53104.27150663,0.000449,120]
[392148637,1761211085819,-178.73884798,0.00024932,2]
[392148638,1761211085921,-321.26115202,0.00024932,2]
[392148639,1761211170647,-195.0,0.00027425,120]
[392148640,1761211170673,-250.0,0.00027425,2]
[392148641,1761211170698,-300.0,0.00027425,120]
[392148642,1761211170719,-152.7693019,0.00027466,2]
[392148643,1761211183396,-154.55876158,0.00028496,120]
[392148644,1761211183417,-3657.0,0.0003,3]
[392148645,1761211183438,-195.0,0.00030167,120]
[392148646,1761211183463,-291.43686308,0.00030167,120]
[392148647,1761211183484,-300.0,0.00030167,120]
[392148648,1761211183507,-151.0,0.00032884,2]
[392148649,1761211183528,-151.0,0.00033003,2]
[392148650,1761211183550,-100.00437534,0.00040243,5]
[392148651,1761211215296,-151.0,0.0003413,2]
[392148652,1761211215321,-1334.90952505,0.00037543,120]
[392148653,1761211215345,-2915.42823472,0.00037543,120]
[392148654,1761211215367,-1099.99562466,0.00040243,5]
[392148655,1761211215388,-300.0,0.00040243,5]
[392148656,1761211236379,155.0,0.000402,2]
[392148657,1761211236648,43.66661557,0.000365,30]
[392148659,1761211400443,102.2306981,0.00024932,2]
[392148660,1761211415127,-200.0254516,0.00024932,2]
[392148661,1761211475302,-197.7438503,0.00024932,2]
[392148662,1761211475327,-150.59339721,0.00027425,120]
[392148663,1761211508079,17271.02817107,0.00015,2]
[392148664,1761211508118,1913592.49917264,0.00015,2]
[392148665,1761211535514,-44.40660279,0.00027425,120]
[392148666,1761211535536,-177.3511014,0.00027425,2]
[392148667,1761211553119,-195.88018385,0.00025,2]
[392148668,1761211553140,-68.21011197,0.00027425,2]
[392148669,1761211553161,-192.86684896,0.00030716,120]
[392148671,1761211589563,2025.83681926,0.00015,2]
[392148672,1761211653112,-151.87794743,0.0002465,2]
[392148673,1761211653137,-204.55756132,0.00025,2]
[392148674,1761211653162,-2.13315104,0.00030716,120]
[392148675,1761211653187,-250.0,0.00034113,2]
[392148676,1761211653213,-109.33338443,0.000365,30]
[392148677,1761211653238,-153.0,0.000365,30]
[392148678,1761211653260,-153.0,0.000365,30]
[392148679,1761211653283,-153.0,0.000365,30]
[392148680,1761211653306,-153.0,0.000365,30]
[392148681,1761211653329,-40140.57561944,0.000383,30]
[392148682,1761211653357,-150.0,0.00040488,4]
[392148683,1761211653380,-150.0,0.00040488,4]
[392148684,1761211653404,-166.66,0.00041748,30]
[392148685,1761211653426,-166.66,0.00042627,30]
[392148686,1761211653449,-300.0,0.00042803,5]
[392148687,1761211653473,-331.44,0.00042803,2]
[392148688,1761211653668,-17394.0,0.00042804,2]
[392148689,1761211653709,-168.0,0.00043221,2]
[392148690,1761211653738,-168.0,0.00043322,2]
[392148691,1761211653763,-168.0,0.00043368,2]
[392148692,1761211653787,-166.66,0.00043505,30]
[392148693,1761211653810,-209.0,0.00043699,5]
[392148694,1761211653831,-300.0,0.00043699,5]
[392148695,1761211653852,-2200.0,0.00043699,5]
[392148696,1761211653873,-5330.87389051,0.000437,2]
[392148697,1761211678806,1094388.93596387,0.00015,2]
[392148698,1761211686416,1060.7720442,0.0003657,120]
[392148699,1761211693058,438.97404087,0.0001439,2]
[392148700,1761211714106,3730.73301608,0.00036566,5]
[392148701,1761211727197,491.93688871,0.00036566,2]
[392148702,1761211751136,-2632.7,0.0003456,2]
[392148703,1761211767153,-665.521087,0.00043481,2]
[392148704,1761211767174,-1616.38610949,0.000437,2]
[392148705,1761211767196,-1890.743395,0.000437,2]
[392148706,1761211804713,169.17,0.00035031,2]
[392148707,1761211808193,250.0,0.00017,2]
[392148715,1761211831427,-3115.656605,0.000437,2]
[392148716,1761211831438,-250.0,0.0004375,120]
[392148717,1761211831448,-216.19,0.00043891,120]
[392148718,1761211831458,-220.77691775,0.000439,120]
[392148719,1761211831468,-698.2,0.00044086,30]
[392148720,1761211831477,-200.0,0.0004428,5]
[392148721,1761211831487,-1160.22636,0.00044281,2]
[392148722,1761211831496,-13448.8257035,0.00044281,2]
[392148723,1761211831506,-1300.0,0.000443,16]
[392148724,1761211831515,-546.76,0.000443,30]
[392148725,1761211831525,-336.58,0.000443,30]
[392148726,1761211831536,-176.3,0.000443,30]
[392148727,1761211831546,-176.3,0.000443,30]
[392148728,1761211831557,-176.3,0.000443,30]
[392148729,1761211831566,-1211.86,0.000443,30]
[392148730,1761211831576,-150.0,0.000443,30]
[392148731,1761211831585,-150.0,0.000443,30]
[392148732,1761211831594,-150.0,0.000443,30]
[392148733,1761211831604,-150.0,0.000443,30]
[392148734,1761211831613,-150.0,0.000443,30]
[392148735,1761211831784,-312.72,0.000443,30]
[392148736,1761211831796,-166.66,0.00044384,30]
[392148737,1761211831810,-2700.0,0.000444,16]
[392148738,1761211831821,-476.23156132,0.00044482,2]
[392148739,1761211831836,-4100.0,0.000445,16]
[392148741,1761211831846,-150.0,0.000446,120]
[392148743,1761211831856,-5400.0,0.000446,16]
[392148745,1761211831865,-151.0,0.00044636,2]
[392148747,1761211831874,-151.0,0.00044636,2]
[392148749,1761211831884,-151.0,0.00044636,2]
[392148751,1761211831893,-151.0,0.00044636,2]
[392148753,1761211831903,-151.0,0.00044636,2]
[392148755,1761211831912,-151.0,0.00044636,2]
[392148757,1761211831922,-151.0,0.00044636,2]
[392148759,1761211831931,-151.0,0.00044636,2]
[392148761,1761211831940,-151.0,0.00044636,2]
[392148764,1761211831950,-151.0,0.00044636,2]
[392148766,1761211831959,-151.0,0.00044636,2]
[392148769,1761211831978,-151.0,0.00044636,2]
[392148771,1761211831988,-151.0,0.00044636,2]
[392148772,1761211831998,-151.0,0.00044636,2]
[392148773,1761211832008,-151.0,0.00044636,2]
[392148774,1761211832018,-151.0,0.00044636,2]
[392148775,1761211832028,-151.0,0.00044636,2]
[392148776,1761211832038,-151.0,0.00044636,2]
[392148777,1761211832049,-151.0,0.00044636,2]
[392148778,1761211832059,-151.0,0.00044636,2]
[392148779,1761211832068,-151.0,0.00044636,2]
[392148780,1761211832078,-151.0,0.00044636,2]
[392148781,1761211832088,-151.0,0.00044636,2]
[392148782,1761211832098,-151.0,0.00044636,2]
[392148783,1761211832108,-151.0,0.00044636,2]
[392148784,1761211832118,-151.0,0.00044636,2]
[392148785,1761211832128,-151.0,0.00044636,2]
[392148786,1761211832138,-151.0,0.00044636,2]
[392148787,1761211832148,-286.56340228,0.00044636,2]
[392148788,1761211832158,-382.439,0.00044662,71]
[392148789,1761211832168,-500.0,0.00044662,120]
[392148790,1761211832178,-500.0,0.00044662,120]
[392148791,1761211832187,-500.0,0.00044662,120]
[392148792,1761211832198,-500.0,0.00044662,120]
[392148793,1761211832207,-500.0,0.00044662,120]
[392148794,1761211832217,-500.0,0.00044662,120]
[392148795,1761211832226,-500.0,0.00044662,120]
[392148796,1761211832235,-500.0,0.00044662,120]
[392148797,1761211832245,-500.0,0.00044662,120]
[392148798,1761211832255,-500.0,0.00044662,120]
[392148799,1761211832265,-500.0,0.00044662,120]
[392148800,1761211832276,-500.0,0.00044662,120]
[392148801,1761211832285,-500.0,0.00044662,120]
[392148802,1761211832296,-500.0,0.00044662,120]
[392148803,1761211832305,-500.0,0.00044662,120]
[392148804,1761211832315,-500.0,0.00044662,120]
[392148805,1761211832325,-500.0,0.00044662,120]
[392148806,1761211832335,-60144.072993,0.00044663,2]
[392148807,1761211832345,-820.09206155,0.00044686,2]
[392148808,1761211832355,-6800.0,0.000447,16]
[392148809,1761211832364,-150.0,0.000447,120]
[392148810,1761211832374,-150.0,0.00044738,2]
[392148811,1761211832384,-150.0,0.00044738,2]
[392148812,1761211832394,-150.0,0.00044738,2]
[392148813,1761211832404,-154.50843744,0.00044738,2]
[392148814,1761211832413,-150.0,0.00044738,2]
[392148815,1761211832423,-150.0,0.00044738,2]
[392148816,1761211832433,-500.0,0.00044738,2]
[392148817,1761211832442,-150.0,0.00044793,2]
[392148818,1761211832452,-150.0,0.00044793,2]
[392148819,1761211832462,-1000.0,0.00044799,2]
[392148820,1761211832472,-2500.0,0.00044799,2]
[392148821,1761211832482,-2766.86008224,0.00044799,15]
[392148822,1761211832491,-1000.0,0.000448,120]
[392148823,1761211832501,-150.0,0.000448,120]
[392148824,1761211832510,-1052.25748544,0.000448,17]
[392148825,1761211832520,-1300.0,0.000448,16]
[392148826,1761211832529,-19541.97856579,0.000448,15]
[392148827,1761211832539,-2766.86008216,0.0004481,15]
[392148828,1761211832549,-19541.97856573,0.00044811,15]
[392148829,1761211832558,-2766.86008216,0.00044821,15]
[392148830,1761211832568,-19541.97856573,0.00044822,15]
[392148831,1761211832577,-164.73956685,0.00044829,15]
[392148832,1761211832587,-2766.86008216,0.00044833,15]
[392148833,1761211832597,-4579.86112222,0.00044833,15]
[392148834,1761211832610,-14962.11744351,0.00044833,15]
[392148835,1761211832620,-2766.86008216,0.00044844,15]
[392148836,1761211832630,-8899.18735204,0.00044844,15]
[392148837,1761211832642,-10642.79121369,0.00044844,15]
[392148838,1761211832651,-211.07164854,0.00044848,2]
[392148839,1761211832661,-200.0,0.00044848,2]
[392148840,1761211832670,-2766.86008216,0.00044855,15]
[392148841,1761211832679,-9646.10205561,0.00044856,15]
[392148842,1761211832691,-418.24853192,0.00044856,15]
[392148843,1761211832702,-630.53991,0.00044856,15]
[392148844,1761211832738,-4933.64428048,0.00044856,15]
[392148845,1761211832750,-3913.44378772,0.00044856,15]
[392148846,1761211832759,-2594.26293728,0.00044866,15]
[392148847,1761211832771,-172.59714488,0.00044866,15]
[392148848,1761211832780,-1758.72627137,0.00044867,15]
[392148849,1761211832793,-3130.13655715,0.00044867,15]
[392148850,1761211832805,-525.888,0.00044867,15]
[392148851,1761211832864,-150.0,0.00044738,2]
[392148852,1761211832874,-386.01,0.00044867,15]
[392148863,1761211837339,-500.0,0.00044799,120]
[392148864,1761211837349,-248.22097935,0.00044799,120]
[392148865,1761211837359,-398.79901268,0.00044799,120]
[392148866,1761211837368,-302.05970121,0.00044799,120]
[392148867,1761211837378,-163.67000637,0.00044799,15]
[392148868,1761211837387,-500.0,0.00044799,120]
[392148869,1761211837397,-180.31713837,0.00044799,120]
[392148870,1761211837406,-322.86229434,0.00044867,15]
[392148871,1761211837417,-4271.31299999,0.00044867,15]
[392148872,1761211837428,-1380.94,0.00044867,15]
[392148873,1761211837445,-510.45374113,0.00044867,15]
[392148874,1761211837457,-7255.64870175,0.00044867,15]
[392148875,1761211837466,-5000.0,0.00044873,120]
[392148876,1761211837476,-500.0,0.00044873,10]
[392148877,1761211837486,-500.0,0.00044873,10]
[392148878,1761211837496,-174.88928588,0.00044873,7]
[392148879,1761211837506,-500.0,0.00044873,10]
[392148880,1761211837517,-500.0,0.00044873,10]
[392148881,1761211837527,-500.0,0.00044873,10]
[392148882,1761211837536,-339.31532798,0.00044873,10]
[392148883,1761211837546,-570.98443138,0.00044873,10]
[392148884,1761211837555,-503.6743994,0.00044873,10]
[392148885,1761211837565,-500.0,0.00044873,10]
[392148886,1761211837575,-500.0,0.00044873,10]
[392148887,1761211837584,-500.0,0.00044873,10]
[392148888,1761211837593,-500.0,0.00044873,2]
[392148889,1761211837601,-2766.86008216,0.00044878,15]
[392148890,1761211837610,-15868.48734499,0.00044878,15]
[392148891,1761211837620,-1124.68125167,0.00044878,15]
[392148892,1761211837633,-1323.16,0.00044878,15]
[392148893,1761211837644,-351.88118535,0.00044878,15]
[392148902,1761211837888,-873.76878372,0.00044878,15]
[392148903,1761211837898,-600.0,0.0004488,120]
[392148904,1761211837908,-640.56331857,0.00044886,28]
[392148905,1761211837917,-2766.86008216,0.00044889,15]
[392148906,1761211837926,-2767.67132069,0.00044889,15]
[392148907,1761211837990,-4302.43109903,0.00044889,15]
[392148908,1761211838132,-1476.42,0.00044889,15]
[392148909,1761211838147,-10995.45614601,0.00044889,15]
[392148910,1761211838158,-330.27924856,0.00044892,17]
[392148911,1761211838167,-508.23,0.00044894,120]
[392148912,1761211838178,-182.68883674,0.00044894,120]
[392148913,1761211838190,-317.31116326,0.00044894,120]
[392148914,1761211838200,-502.19,0.00044894,120]
[392148915,1761211838210,-180.49883674,0.00044894,120]
[392148916,1761211838222,-319.50116326,0.00044894,120]
[392148917,1761211838231,-370.38407002,0.00044894,120]
[392148918,1761211838243,-129.61592998,0.00044894,120]
[392148919,1761211838254,-500.0,0.00044898,120]
[392148920,1761211838263,-500.0,0.00044898,2]
[392148921,1761211838274,-155.482,0.00044898,120]
[392148922,1761211838283,-300.4632,0.00044899,10]
[392148923,1761211838293,-500.0,0.00044899,120]
[392148924,1761211838303,-377.52772794,0.00044899,120]
[392148925,1761211838314,-500.0,0.00044899,120]
[392148926,1761211838447,-500.0,0.00044899,30]
[392148927,1761211838457,-500.0,0.00044899,120]
[392148928,1761211838467,-500.0,0.00044899,120]
[392148929,1761211838477,-500.0,0.00044899,120]
[392148930,1761211838490,-515.54656656,0.00044899,120]
[392148931,1761211838501,-404.02772086,0.00044899,120]
[392148932,1761211838510,-500.03267368,0.00044899,120]
[392148933,1761211838520,-509.1675688,0.00044899,120]
[392148934,1761211838529,-494.765551,0.00044899,120]
[392148935,1761211838539,-500.0,0.00044899,120]
[392148936,1761211838549,-500.0,0.00044899,120]
[392148937,1761211838559,-500.0,0.00044899,120]
[392148938,1761211838569,-500.0,0.00044899,120]
[392148939,1761211838579,-884.14,0.00044899,120]
[392148940,1761211838588,-665.12,0.00044899,120]
[392148941,1761211838598,-516.63253931,0.00044899,120]
[392148942,1761211838607,-500.0,0.00044899,120]
[392148943,1761211838616,-500.0,0.00044899,120]
[392148944,1761211838626,-500.0,0.00044899,2]
[392148945,1761211838636,-500.0,0.00044899,120]
[392148946,1761211838645,-500.0,0.00044899,120]
[392148947,1761211838655,-500.0,0.00044899,120]
[392148948,1761211838664,-500.0,0.00044899,120]
[392148949,1761211838674,-151.87074197,0.00044899,60]
[392148950,1761211838683,-526.27,0.00044899,120]
[392148951,1761211838692,-150.0,0.00044899,2]
[392148952,1761211838702,-150.0,0.00044899,60]
[392148953,1761211838712,-150.0,0.00044899,60]
[392148954,1761211838721,-150.0,0.00044899,60]
[392148955,1761211838730,-150.0,0.00044899,60]
[392148956,1761211838739,-150.0,0.00044899,120]
[392148957,1761211838749,-676.39,0.00044899,120]
[392148958,1761211838759,-152.29441088,0.00044899,60]
[392148959,1761211838769,-500.0,0.00044899,120]
[392148960,1761211838778,-500.0,0.00044899,120]
[392148961,1761211838788,-500.0,0.00044899,120]
[392148962,1761211838798,-500.0,0.00044899,120]
[392148963,1761211838807,-500.0,0.00044899,120]
[392148964,1761211838816,-585.3,0.00044899,120]
[392148965,1761211838827,-500.0,0.00044899,120]
[392148966,1761211838840,-500.0,0.00044899,120]
[392148967,1761211838851,-500.0,0.00044899,120]
[392148968,1761211838861,-500.0,0.00044899,120]
[392148969,1761211838871,-1825.82,0.00044899,120]
[392148970,1761211838882,-500.0,0.00044899,120]
[392148971,1761211838891,-500.0,0.00044899,120]
[392148972,1761211838901,-500.0,0.00044899,120]
[392148973,1761211838911,-1082.17,0.00044899,120]
[392148974,1761211838921,-500.0,0.00044899,120]
[392148975,1761211838930,-500.0,0.00044899,120]
[392148976,1761211838940,-500.0,0.00044899,120]
[392148977,1761211838950,-500.0,0.00044899,120]
[392148978,1761211838959,-500.0,0.00044899,120]
[392148979,1761211838969,-500.0,0.00044899,120]
[392148980,1761211838978,-500.0,0.00044899,120]
[392148981,1761211838988,-500.0,0.00044899,120]
[392148982,1761211838997,-1599.44,0.00044899,30]
[392148983,1761211839007,-500.0,0.00044899,120]
[392148984,1761211839017,-1338.33,0.00044899,120]
[392148985,1761211839027,-500.0,0.00044899,120]
[392148986,1761211839036,-500.0,0.00044899,120]
[392148987,1761211839047,-500.0,0.00044899,120]
[392148988,1761211839058,-500.0,0.00044899,120]
[392148989,1761211839068,-500.0,0.00044899,120]
[392148990,1761211839078,-1712.57,0.00044899,120]
[392148991,1761211839090,-500.0,0.00044899,120]
[392148992,1761211839099,-500.0,0.00044899,120]
[392148993,1761211839109,-500.0,0.00044899,120]
[392148994,1761211839119,-1053.7,0.00044899,120]
[392148995,1761211839128,-2804.65993812,0.00044899,120]
[392148996,1761211839141,-1000.18778537,0.00044899,120]
[392148997,1761211839153,-865.69,0.00044899,120]
[392148998,1761211839164,-2247.93227651,0.00044899,120]
[392148999,1761211839173,-5.60178248,0.00044899,120]
[392149000,1761211839185,-552.95821752,0.00044899,120]
[392149002,1761211839195,-500.0,0.00044899,120]
[392149003,1761211839205,-500.0,0.00044899,120]
[392149004,1761211839214,-23997.5989,0.000449,2]
[392149005,1761211839223,-25822.17824442,0.000449,30]
[392149006,1761211839233,-155555.0,0.000449,120]
[392149007,1761211839242,-640.56331857,0.000449,28]
[392149008,1761211839252,-150.0,0.000449,120]
[392149011,1761211839261,-221.01,0.000449,120]
[392149013,1761211839271,-171.90030926,0.000449,120]
[392149015,1761211839280,-171.90030926,0.000449,120]
[392149016,1761211839290,-5517.39051632,0.000449,2]
[392149018,1761211839300,-1536.40374782,0.000449,120]
[392149020,1761211839310,-250.99196892,0.000449,22]
[392149023,1761211839320,-1524.99400192,0.000449,2]
[392149025,1761211839330,-1300.0,0.000449,16]
[392149026,1761211839339,-2766.86008216,0.000449,15]
[392149027,1761211839350,-19541.97856573,0.000449,15]
[392149028,1761211839360,-273.67,0.00044929,2]
[392149029,1761211839369,-1415.2,0.00044929,120]
[392149030,1761211839378,-30576.62,0.00044929,2]
[392149031,1761211839387,-889.39,0.00044929,2]
[392149032,1761211839397,-700.58,0.00044929,120]
[392149033,1761211839406,-1000.0,0.00044929,2]
[392149034,1761211839415,-171.9,0.0004495,120]
[392149035,1761211839424,-229.12,0.0004495,120]
[392149036,1761211839434,-150.0,0.00044954,60]
[392149037,1761211839443,-150.0,0.00044954,60]
[392149038,1761211839452,-150.0,0.00044954,120]
[392149039,1761211839462,-1873.69640362,0.00044955,120]
[392149040,1761211839472,-1186.37455805,0.00044955,120]
[392149041,1761211839483,-61615.6217372,0.00044956,120]
[392149042,1761211839492,-60735.22124375,0.00044957,120]
[392149043,1761211839501,-1186.37455805,0.00044957,120]
[392149044,1761211839511,-174.53803622,0.00044957,120]
[392149045,1761211839520,-2000.0807868,0.00044958,120]
[392149046,1761211839529,-7181.10816809,0.00044959,120]
[392149047,1761211839539,-174.53803622,0.00044959,120]
[392149048,1761211839550,-609.47530246,0.0004496,120]
[392149049,1761211839559,-2000.0807868,0.00044961,120]
[392149050,1761211839568,-174.53803622,0.00044963,120]
[392149051,1761211839579,-61615.6217372,0.00044963,120]
[392149052,1761211839588,-60735.22124375,0.00044964,120]
[392149053,1761211839599,-1873.69640362,0.00044966,120]
[392149054,1761211839609,-6488.24842485,0.00044966,120]
[392149055,1761211839619,-1186.37455805,0.00044967,120]
[392149056,1761211839628,-60735.22124375,0.00044967,120]
[392149057,1761211839638,-3357.91556825,0.00044968,120]
[392149058,1761211839647,-7181.10816809,0.00044969,120]
[392149059,1761211839656,-742.45984123,0.0004497,3]
[392149060,1761211839666,-6488.24842485,0.0004497,120]
[392149061,1761211839675,-3357.91556825,0.0004497,120]
[392149062,1761211839684,-61615.6217372,0.0004497,120]
[392149063,1761211839693,-3357.91556825,0.00044971,120]
[392149064,1761211839702,-609.47530246,0.00044972,120]
[392149065,1761211839712,-500.0,0.00044973,3]
[392149066,1761211839721,-501.72464827,0.00044973,5]
[392149067,1761211839730,-500.0,0.00044973,10]
[392149068,1761211839740,-500.0,0.00044973,10]
[392149069,1761211839749,-502.80221331,0.00044973,10]
[392149070,1761211839759,-500.0,0.00044973,2]
[392149071,1761211839768,-501.19732905,0.00044973,5]
[392149072,1761211839778,-500.0,0.00044973,10]
[392149073,1761211839787,-501.50763164,0.00044973,2]
[392149074,1761211839796,-500.0,0.00044973,10]
[392149075,1761211839806,-500.0,0.00044973,10]
[392149076,1761211839815,-160.177328,0.00044973,7]
[392149077,1761211839824,-160.177328,0.00044973,10]
[392149078,1761211839838,-160.17732397,0.00044973,10]
[392149079,1761211839847,-200.0,0.00044973,10]